[Event "Titled Tuesday Blitz June 14 Late 2022"]
[White "Salem, A.R. Saleh"]
[Black "D`Arruda, Ricardo D."]
[WhiteFideId "9301348"]
[BlackFideId "100692"]
[WhiteElo "2679"]
[BlackElo "2493"]
[Result "1-0"]
[Round "01"]
[TimeControl "180+1"]
[Date "2022.06.14"]
[WhiteClock "0:02:27"]
[BlackClock "0:00:21"]

1. d4 {[%clk 0:02:57]}  Nf6 {[%clk 0:02:59]} 2. c4 {[%clk 0:02:57]}  e5 {[%clk 0:02:58]} 3. dxe5 {[%clk 0:02:56]}  Ne4 {[%clk 0:02:57]} 4. Nd2 {[%clk 0:02:54]}  Nc5 {[%clk 0:02:56]} 5. Ngf3 {[%clk 0:02:53]}  Nc6 {[%clk 0:02:56]} 6. g3 {[%clk 0:02:51]}  d6 {[%clk 0:02:55]} 7. exd6 {[%clk 0:02:51]}  Qxd6 {[%clk 0:02:56]} 8. Bg2 {[%clk 0:02:49]}  Be7 {[%clk 0:02:57]} 9. O-O {[%clk 0:02:46]}  Bf5 {[%clk 0:02:57]} 10. a3 {[%clk 0:02:46]}  O-O-O {[%clk 0:02:52]} 11. b4 {[%clk 0:02:46]}  Ne4 {[%clk 0:02:51]} 12. Qb3 {[%clk 0:02:46]}  Bf6 {[%clk 0:02:47]} 13. Nxe4 {[%clk 0:02:45]}  Bxe4 {[%clk 0:02:48]} 14. Bf4 {[%clk 0:02:46]}  Qe6 {[%clk 0:02:32]} 15. Rad1 {[%clk 0:02:46]}  Bxf3 {[%clk 0:02:25]} 16. Qxf3 {[%clk 0:02:42]}  Qxc4 {[%clk 0:02:19]} 17. Rc1 {[%clk 0:02:42]}  Qb5 {[%clk 0:02:14]} 18. a4 {[%clk 0:02:41]}  Qxa4 {[%clk 0:02:12]} 19. b5 {[%clk 0:02:40]}  Qxb5 {[%clk 0:02:12]} 20. Rb1 {[%clk 0:02:41]}  Qa6 {[%clk 0:02:11]} 21. Rfc1 {[%clk 0:02:39]}  Rd7 {[%clk 0:01:38]} 22. Bh3 {[%clk 0:02:38]}  Rd8 {[%clk 0:01:36]} 23. Qb3 {[%clk 0:02:38]}  Kb8 {[%clk 0:00:45]} 24. Bg2 {[%clk 0:02:29]}  Rd6 {[%clk 0:00:24]} 25. Bxd6 {[%clk 0:02:28]}  Rxd6 {[%clk 0:00:25]} 26. Qxf7 {[%clk 0:02:28]}  Nd8 {[%clk 0:00:21]} 27. Qxc7+ {[%clk 0:02:27]} 1-0


[Site "https://www.chess.com"]

[Event "Titled Tuesday Blitz June 14 Late 2022"]
[White "Salimova, Nurgyul"]
[Black "Moskvin, Anatoly"]
[WhiteFideId "2915138"]
[BlackFideId "24199990"]
[WhiteElo "2184"]
[BlackElo "2079"]
[Result "1-0"]
[Round "01"]
[TimeControl "180+1"]
[Date "2022.06.15"]
[WhiteClock "0:00:19"]
[BlackClock "0:00:12"]

1. d4 {[%clk 0:03:00]}  Nf6 {[%clk 0:02:58]} 2. Nf3 {[%clk 0:02:58]}  c5 {[%clk 0:02:58]} 3. d5 {[%clk 0:02:57]}  g6 {[%clk 0:02:58]} 4. Nc3 {[%clk 0:02:57]}  d6 {[%clk 0:02:58]} 5. e4 {[%clk 0:02:57]}  Bg7 {[%clk 0:02:58]} 6. Bd3 {[%clk 0:02:55]}  O-O {[%clk 0:02:58]} 7. Nd2 {[%clk 0:02:55]}  Ne8 {[%clk 0:02:40]} 8. O-O {[%clk 0:02:53]}  Nc7 {[%clk 0:02:39]} 9. a4 {[%clk 0:02:53]}  Nba6 {[%clk 0:02:35]} 10. Nc4 {[%clk 0:02:52]}  Nb4 {[%clk 0:02:35]} 11. Be2 {[%clk 0:02:50]}  Rb8 {[%clk 0:02:24]} 12. Bg5 {[%clk 0:02:47]}  h6 {[%clk 0:02:23]} 13. Bf4 {[%clk 0:02:42]}  b6 {[%clk 0:02:17]} 14. Qd2 {[%clk 0:02:42]}  Kh7 {[%clk 0:02:16]} 15. h4 {[%clk 0:02:36]}  f5 {[%clk 0:02:02]} 16. Bf3 {[%clk 0:01:49]}  fxe4 {[%clk 0:01:53]} 17. Bxe4 {[%clk 0:01:50]}  Bf5 {[%clk 0:01:53]} 18. Rae1 {[%clk 0:01:42]}  Qd7 {[%clk 0:01:12]} 19. h5 {[%clk 0:01:35]}  g5 {[%clk 0:01:08]} 20. Bg3 {[%clk 0:01:33]}  Bxe4 {[%clk 0:00:47]} 21. Rxe4 {[%clk 0:01:26]}  Bxc3 {[%clk 0:00:47]} 22. bxc3 {[%clk 0:01:27]}  Nbxd5 {[%clk 0:00:48]} 23. Rfe1 {[%clk 0:01:21]}  e5 {[%clk 0:00:44]} 24. Nxd6 {[%clk 0:01:16]}  Qxd6 {[%clk 0:00:32]} 25. Bxe5 {[%clk 0:01:16]}  Qc6 {[%clk 0:00:26]} 26. Bxc7 {[%clk 0:00:44]}  Nxc7 {[%clk 0:00:26]} 27. Re7+ {[%clk 0:00:44]}  Kg8 {[%clk 0:00:27]} 28. Qd3 {[%clk 0:00:29]}  Rf7 {[%clk 0:00:18]} 29. Rxf7 {[%clk 0:00:29]}  Kxf7 {[%clk 0:00:19]} 30. Qh7+ {[%clk 0:00:29]}  Kf8 {[%clk 0:00:17]} 31. Qh8+ {[%clk 0:00:27]}  Kf7 {[%clk 0:00:18]} 32. Qxb8 {[%clk 0:00:27]}  Ne6 {[%clk 0:00:17]} 33. Qxa7+ {[%clk 0:00:25]}  Kf6 {[%clk 0:00:14]} 34. Qh7 {[%clk 0:00:22]}  Qd5 {[%clk 0:00:13]} 35. Qxh6+ {[%clk 0:00:22]}  Ke7 {[%clk 0:00:13]} 36. Qxe6+ {[%clk 0:00:21]}  Qxe6 {[%clk 0:00:11]} 37. Rxe6+ {[%clk 0:00:22]}  Kxe6 {[%clk 0:00:12]} 38. g4 {[%clk 0:00:19]} 1-0


[Site "https://www.chess.com"]

[Event "Titled Tuesday Blitz June 14 Late 2022"]
[White "Saveliev, Alexei"]
[Black "Novikova, Galina"]
[WhiteFideId "24128546"]
[BlackFideId "4157095"]
[WhiteElo "2281"]
[BlackElo "1863"]
[Result "0-1"]
[Round "01"]
[TimeControl "180+1"]
[Date "2022.06.15"]
[WhiteClock "0:00:09"]
[BlackClock "0:00:06"]

1. c4 {[%clk 0:02:51]}  e6 {[%clk 0:02:59]} 2. Nc3 {[%clk 0:02:51]}  f5 {[%clk 0:02:59]} 3. e4 {[%clk 0:02:50]}  fxe4 {[%clk 0:02:54]} 4. Nxe4 {[%clk 0:02:51]}  g6 {[%clk 0:02:51]} 5. d4 {[%clk 0:02:49]}  Bg7 {[%clk 0:02:51]} 6. Nf3 {[%clk 0:02:44]}  Ne7 {[%clk 0:02:43]} 7. Be2 {[%clk 0:02:22]}  O-O {[%clk 0:02:43]} 8. O-O {[%clk 0:02:17]}  d6 {[%clk 0:02:43]} 9. Bg5 {[%clk 0:02:16]}  Nbc6 {[%clk 0:02:28]} 10. Qd2 {[%clk 0:02:07]}  e5 {[%clk 0:02:12]} 11. d5 {[%clk 0:02:07]}  Nd4 {[%clk 0:01:53]} 12. Nxd4 {[%clk 0:02:08]}  exd4 {[%clk 0:01:54]} 13. Rae1 {[%clk 0:02:07]}  Qd7 {[%clk 0:01:49]} 14. Bh6 {[%clk 0:01:56]}  Nf5 {[%clk 0:01:45]} 15. Bxg7 {[%clk 0:01:55]}  Qxg7 {[%clk 0:01:46]} 16. Bg4 {[%clk 0:01:50]}  Bd7 {[%clk 0:01:43]} 17. Ng5 {[%clk 0:01:48]}  Rae8 {[%clk 0:01:32]} 18. Nf3 {[%clk 0:01:44]}  Ne3 {[%clk 0:01:03]} 19. fxe3 {[%clk 0:01:32]}  Bxg4 {[%clk 0:01:03]} 20. Nxd4 {[%clk 0:01:27]}  Rxf1+ {[%clk 0:01:02]} 21. Rxf1 {[%clk 0:01:28]}  Qe5 {[%clk 0:00:59]} 22. h3 {[%clk 0:01:21]}  Bd7 {[%clk 0:00:56]} 23. Rf3 {[%clk 0:01:16]}  Rf8 {[%clk 0:00:27]} 24. Rxf8+ {[%clk 0:01:12]}  Kxf8 {[%clk 0:00:28]} 25. Qf2+ {[%clk 0:01:12]}  Kg7 {[%clk 0:00:27]} 26. Qf4 {[%clk 0:01:12]}  Qe7 {[%clk 0:00:19]} 27. Kf2 {[%clk 0:01:00]}  a6 {[%clk 0:00:19]} 28. b3 {[%clk 0:00:57]}  Qe8 {[%clk 0:00:15]} 29. h4 {[%clk 0:00:52]}  Qe7 {[%clk 0:00:15]} 30. g4 {[%clk 0:00:50]}  Qxh4+ {[%clk 0:00:14]} 31. Kf3 {[%clk 0:00:44]}  Qh3+ {[%clk 0:00:14]} 32. Qg3 {[%clk 0:00:44]}  Bxg4+ {[%clk 0:00:15]} 33. Kf2 {[%clk 0:00:44]}  Qxg3+ {[%clk 0:00:14]} 34. Kxg3 {[%clk 0:00:45]}  Bd7 {[%clk 0:00:14]} 35. a4 {[%clk 0:00:36]}  h5 {[%clk 0:00:14]} 36. Kf4 {[%clk 0:00:34]}  Kf6 {[%clk 0:00:14]} 37. Nf3 {[%clk 0:00:35]}  Bg4 {[%clk 0:00:11]} 38. Ng5 {[%clk 0:00:35]}  Bd1 {[%clk 0:00:12]} 39. Ne4+ {[%clk 0:00:29]}  Kg7 {[%clk 0:00:12]} 40. Nd2 {[%clk 0:00:29]}  Kf6 {[%clk 0:00:09]} 41. Ne4+ {[%clk 0:00:29]}  Kg7 {[%clk 0:00:09]} 42. Nd2 {[%clk 0:00:30]}  Kh6 {[%clk 0:00:10]} 43. a5 {[%clk 0:00:27]}  g5+ {[%clk 0:00:10]} 44. Kf5 {[%clk 0:00:28]}  h4 {[%clk 0:00:09]} 45. b4 {[%clk 0:00:26]}  h3 {[%clk 0:00:10]} 46. Nf1 {[%clk 0:00:26]}  Kh5 {[%clk 0:00:03]} 47. c5 {[%clk 0:00:23]}  Kh4 {[%clk 0:00:04]} 48. cxd6 {[%clk 0:00:22]}  cxd6 {[%clk 0:00:05]} 49. e4 {[%clk 0:00:22]}  g4 {[%clk 0:00:05]} 50. e5 {[%clk 0:00:23]}  g3 {[%clk 0:00:06]} 51. Nxg3 {[%clk 0:00:13]}  Kxg3 {[%clk 0:00:06]} 52. exd6 {[%clk 0:00:13]}  Bg4+ {[%clk 0:00:05]} 53. Kf6 {[%clk 0:00:14]}  h2 {[%clk 0:00:06]} 54. Ke7 {[%clk 0:00:15]}  h1=Q {[%clk 0:00:06]} 55. d7 {[%clk 0:00:13]}  Bxd7 {[%clk 0:00:07]} 56. Kd6 {[%clk 0:00:14]}  Qh7 {[%clk 0:00:06]} 57. Kc5 {[%clk 0:00:13]}  Bb5 {[%clk 0:00:06]} 58. Kb6 {[%clk 0:00:12]}  Qd7 {[%clk 0:00:06]} 59. Kc5 {[%clk 0:00:11]}  Qc7+ {[%clk 0:00:05]} 60. Kd4 {[%clk 0:00:11]}  Qd6 {[%clk 0:00:06]} 61. Ke4 {[%clk 0:00:11]}  Bc4 {[%clk 0:00:05]} 62. b5 {[%clk 0:00:09]}  Qxd5+ {[%clk 0:00:06]} 63. Ke3 {[%clk 0:00:09]}  Qd3# {[%clk 0:00:06]} 0-1


[Site "https://www.chess.com"]

[Event "Titled Tuesday Blitz June 14 Late 2022"]
[White "Seletsky, Grigory"]
[Black "Aldokhin, Ivan"]
[WhiteFideId "14112191"]
[BlackFideId "24115720"]
[WhiteElo "2492"]
[BlackElo "2231"]
[Result "0-1"]
[Round "01"]
[TimeControl "180+1"]
[Date "2022.06.15"]
[WhiteClock "0:00:25"]
[BlackClock "0:00:09"]

1. e4 {[%clk 0:02:55]}  c5 {[%clk 0:02:59]} 2. Nc3 {[%clk 0:02:53]}  e6 {[%clk 0:03:00]} 3. f4 {[%clk 0:02:52]}  a6 {[%clk 0:03:00]} 4. Nf3 {[%clk 0:02:51]}  b5 {[%clk 0:03:01]} 5. d3 {[%clk 0:02:51]}  Bb7 {[%clk 0:03:01]} 6. g3 {[%clk 0:02:51]}  Nf6 {[%clk 0:03:01]} 7. Bg2 {[%clk 0:02:51]}  d5 {[%clk 0:03:01]} 8. e5 {[%clk 0:02:50]}  Nfd7 {[%clk 0:03:01]} 9. O-O {[%clk 0:02:48]}  d4 {[%clk 0:02:59]} 10. Ne4 {[%clk 0:02:47]}  Bxe4 {[%clk 0:02:59]} 11. dxe4 {[%clk 0:02:48]}  Nc6 {[%clk 0:03:00]} 12. h4 {[%clk 0:02:46]}  Be7 {[%clk 0:02:59]} 13. h5 {[%clk 0:02:45]}  h6 {[%clk 0:02:58]} 14. g4 {[%clk 0:02:42]}  Qb6 {[%clk 0:02:54]} 15. Kh1 {[%clk 0:02:40]}  c4 {[%clk 0:02:45]} 16. a4 {[%clk 0:02:39]}  O-O-O {[%clk 0:02:37]} 17. axb5 {[%clk 0:02:38]}  axb5 {[%clk 0:02:38]} 18. Qe1 {[%clk 0:02:30]}  Nb4 {[%clk 0:02:20]} 19. Qd1 {[%clk 0:02:21]}  Nc6 {[%clk 0:01:50]} 20. Qe1 {[%clk 0:02:16]}  Nc5 {[%clk 0:01:50]} 21. f5 {[%clk 0:02:12]}  d3 {[%clk 0:01:47]} 22. Be3 {[%clk 0:02:07]}  dxc2 {[%clk 0:01:38]} 23. Qf2 {[%clk 0:02:01]}  Nb4 {[%clk 0:01:34]} 24. f6 {[%clk 0:01:52]}  gxf6 {[%clk 0:01:25]} 25. exf6 {[%clk 0:01:52]}  Bf8 {[%clk 0:01:25]} 26. Ne5 {[%clk 0:01:48]}  Qc7 {[%clk 0:01:13]} 27. Ra8+ {[%clk 0:01:19]}  Kb7 {[%clk 0:01:12]} 28. Rxd8 {[%clk 0:01:18]}  Qxe5 {[%clk 0:00:29]} 29. Bf4 {[%clk 0:00:37]}  Nbd3 {[%clk 0:00:29]} 30. Rxd3 {[%clk 0:00:33]}  Nxd3 {[%clk 0:00:29]} 31. Qd2 {[%clk 0:00:29]}  Nxf4 {[%clk 0:00:21]} 32. Rxf4 {[%clk 0:00:27]}  Bd6 {[%clk 0:00:15]} 33. Qxd6 {[%clk 0:00:26]}  c1=Q+ {[%clk 0:00:11]} 34. Rf1 {[%clk 0:00:25]}  Qxf1+ {[%clk 0:00:09]} 0-1


[Site "https://www.chess.com"]

[Event "Titled Tuesday Blitz June 14 Late 2022"]
[White "Seo, Jung Min"]
[Black "Ocelak, Jakub"]
[WhiteFideId "1734687"]
[BlackFideId "23707933"]
[WhiteElo "2414"]
[BlackElo "2048"]
[Result "1-0"]
[Round "01"]
[TimeControl "180+1"]
[Date "2022.06.15"]
[WhiteClock "0:01:07"]
[BlackClock "0:00:10"]

1. d4 {[%clk 0:03:00]}  Nf6 {[%clk 0:02:52]} 2. c4 {[%clk 0:03:01]}  e6 {[%clk 0:02:49]} 3. g3 {[%clk 0:03:00]}  d5 {[%clk 0:02:48]} 4. Bg2 {[%clk 0:03:00]}  Be7 {[%clk 0:02:46]} 5. Nf3 {[%clk 0:03:00]}  O-O {[%clk 0:02:43]} 6. O-O {[%clk 0:03:01]}  c6 {[%clk 0:02:42]} 7. Qc2 {[%clk 0:02:59]}  Nbd7 {[%clk 0:02:41]} 8. Nbd2 {[%clk 0:02:59]}  b6 {[%clk 0:02:41]} 9. e4 {[%clk 0:02:59]}  dxe4 {[%clk 0:02:37]} 10. Nxe4 {[%clk 0:02:59]}  Bb7 {[%clk 0:02:38]} 11. Rd1 {[%clk 0:02:55]}  Nxe4 {[%clk 0:02:34]} 12. Qxe4 {[%clk 0:02:55]}  Nf6 {[%clk 0:02:34]} 13. Qe2 {[%clk 0:02:55]}  Qc8 {[%clk 0:02:27]} 14. Bf4 {[%clk 0:02:45]}  c5 {[%clk 0:02:20]} 15. d5 {[%clk 0:02:45]}  Rd8 {[%clk 0:02:08]} 16. dxe6 {[%clk 0:02:19]}  Qxe6 {[%clk 0:02:09]} 17. Qxe6 {[%clk 0:02:19]}  fxe6 {[%clk 0:02:10]} 18. Ng5 {[%clk 0:02:19]}  Bxg2 {[%clk 0:02:08]} 19. Kxg2 {[%clk 0:02:19]}  Nh5 {[%clk 0:01:41]} 20. Nxe6 {[%clk 0:02:18]}  Rxd1 {[%clk 0:01:40]} 21. Rxd1 {[%clk 0:02:18]}  Kf7 {[%clk 0:01:40]} 22. Ng5+ {[%clk 0:02:10]}  Kg6 {[%clk 0:01:40]} 23. Nh3 {[%clk 0:02:10]}  Rd8 {[%clk 0:01:33]} 24. Rxd8 {[%clk 0:02:08]}  Bxd8 {[%clk 0:01:34]} 25. Bb8 {[%clk 0:02:03]}  a6 {[%clk 0:01:33]} 26. g4 {[%clk 0:02:01]}  Nf6 {[%clk 0:01:30]} 27. f3 {[%clk 0:01:50]}  Nd7 {[%clk 0:01:30]} 28. Bd6 {[%clk 0:01:49]}  Bf6 {[%clk 0:01:29]} 29. b3 {[%clk 0:01:46]}  Kf7 {[%clk 0:01:29]} 30. f4 {[%clk 0:01:40]}  Ke6 {[%clk 0:01:29]} 31. Bc7 {[%clk 0:01:40]}  g6 {[%clk 0:01:25]} 32. Kf3 {[%clk 0:01:38]}  b5 {[%clk 0:01:21]} 33. Nf2 {[%clk 0:01:38]}  Bd4 {[%clk 0:01:16]} 34. Ne4 {[%clk 0:01:35]}  h6 {[%clk 0:01:10]} 35. h3 {[%clk 0:01:35]}  Ke7 {[%clk 0:00:59]} 36. Ng3 {[%clk 0:01:32]}  Nf6 {[%clk 0:00:54]} 37. f5 {[%clk 0:01:26]}  Kd7 {[%clk 0:00:37]} 38. Bf4 {[%clk 0:01:23]}  g5 {[%clk 0:00:36]} 39. Bd2 {[%clk 0:01:22]}  Kc6 {[%clk 0:00:24]} 40. Ne4 {[%clk 0:01:20]}  Nd7 {[%clk 0:00:24]} 41. cxb5+ {[%clk 0:01:19]}  axb5 {[%clk 0:00:24]} 42. h4 {[%clk 0:01:15]}  Kd5 {[%clk 0:00:22]} 43. Nc3+ {[%clk 0:01:10]}  Bxc3 {[%clk 0:00:09]} 44. Bxc3 {[%clk 0:01:10]}  gxh4 {[%clk 0:00:10]} 45. Bg7 {[%clk 0:01:07]} 1-0


[Site "https://www.chess.com"]

[Event "Titled Tuesday Blitz June 14 Late 2022"]
[White "Taboas Rodriguez, Daniel"]
[Black "McNeill, Gordon"]
[WhiteFideId "2208466"]
[BlackFideId "30920760"]
[WhiteElo "2429"]
[BlackElo "2238"]
[Result "1/2-1/2"]
[Round "01"]
[TimeControl "180+1"]
[Date "2022.06.15"]
[WhiteClock "0:00:27"]
[BlackClock "0:00:06"]

1. d4 {[%clk 0:02:59]}  d5 {[%clk 0:02:59]} 2. Nf3 {[%clk 0:02:59]}  Nf6 {[%clk 0:02:58]} 3. c4 {[%clk 0:03:00]}  c6 {[%clk 0:02:58]} 4. cxd5 {[%clk 0:03:01]}  cxd5 {[%clk 0:02:58]} 5. Nc3 {[%clk 0:03:01]}  Nc6 {[%clk 0:02:57]} 6. Bf4 {[%clk 0:03:02]}  a6 {[%clk 0:02:58]} 7. Rc1 {[%clk 0:03:02]}  Qb6 {[%clk 0:02:22]} 8. Na4 {[%clk 0:03:01]}  Qa5+ {[%clk 0:02:15]} 9. Bd2 {[%clk 0:03:01]}  Qc7 {[%clk 0:02:11]} 10. Ne5 {[%clk 0:02:59]}  Bd7 {[%clk 0:02:07]} 11. e3 {[%clk 0:02:58]}  e6 {[%clk 0:02:07]} 12. Bd3 {[%clk 0:02:47]}  Bd6 {[%clk 0:02:04]} 13. f4 {[%clk 0:02:47]}  O-O {[%clk 0:01:51]} 14. O-O {[%clk 0:02:47]}  Qd8 {[%clk 0:01:43]} 15. Nc5 {[%clk 0:02:45]}  Rb8 {[%clk 0:01:36]} 16. a3 {[%clk 0:02:16]}  Ne7 {[%clk 0:01:35]} 17. Qe2 {[%clk 0:02:14]}  Bc8 {[%clk 0:01:19]} 18. b4 {[%clk 0:02:04]}  Ne8 {[%clk 0:01:10]} 19. Be1 {[%clk 0:01:51]}  f6 {[%clk 0:01:08]} 20. Nf3 {[%clk 0:01:44]}  a5 {[%clk 0:01:07]} 21. Qc2 {[%clk 0:01:37]}  f5 {[%clk 0:01:04]} 22. Bh4 {[%clk 0:01:35]}  axb4 {[%clk 0:01:03]} 23. axb4 {[%clk 0:01:36]}  Nf6 {[%clk 0:01:01]} 24. Ne5 {[%clk 0:01:34]}  b6 {[%clk 0:01:00]} 25. Na6 {[%clk 0:01:28]}  Bxa6 {[%clk 0:00:58]} 26. Bxa6 {[%clk 0:01:29]}  Bxb4 {[%clk 0:00:56]} 27. Bb5 {[%clk 0:01:25]}  Bd6 {[%clk 0:00:55]} 28. Bxf6 {[%clk 0:01:22]}  Rxf6 {[%clk 0:00:55]} 29. Nd7 {[%clk 0:01:22]}  Rg6 {[%clk 0:00:47]} 30. Nxb8 {[%clk 0:01:22]}  Bxb8 {[%clk 0:00:46]} 31. Rf3 {[%clk 0:01:10]}  h6 {[%clk 0:00:41]} 32. Qf2 {[%clk 0:01:06]}  Kh7 {[%clk 0:00:40]} 33. Rg3 {[%clk 0:01:07]}  Rxg3 {[%clk 0:00:39]} 34. Qxg3 {[%clk 0:01:07]}  Ng8 {[%clk 0:00:37]} 35. Qf2 {[%clk 0:01:04]}  Nf6 {[%clk 0:00:36]} 36. Qc2 {[%clk 0:01:04]}  Ne4 {[%clk 0:00:35]} 37. Qc8 {[%clk 0:01:04]}  Qh4 {[%clk 0:00:30]} 38. Qc2 {[%clk 0:00:56]}  Bd6 {[%clk 0:00:29]} 39. Bd3 {[%clk 0:00:56]}  Nf6 {[%clk 0:00:27]} 40. h3 {[%clk 0:00:53]}  Qg3 {[%clk 0:00:26]} 41. Qf2 {[%clk 0:00:52]}  Qg6 {[%clk 0:00:25]} 42. Rc6 {[%clk 0:00:52]}  Ne8 {[%clk 0:00:23]} 43. Rxb6 {[%clk 0:00:51]}  Qf6 {[%clk 0:00:22]} 44. Bb5 {[%clk 0:00:50]}  Qd8 {[%clk 0:00:20]} 45. Rc6 {[%clk 0:00:42]}  Nf6 {[%clk 0:00:19]} 46. Bd3 {[%clk 0:00:40]}  Qd7 {[%clk 0:00:19]} 47. Qc2 {[%clk 0:00:39]}  Qe7 {[%clk 0:00:16]} 48. Rc8 {[%clk 0:00:39]}  Nh5 {[%clk 0:00:16]} 49. Qf2 {[%clk 0:00:37]}  Nf6 {[%clk 0:00:14]} 50. g4 {[%clk 0:00:36]}  g6 {[%clk 0:00:13]} 51. Qf3 {[%clk 0:00:35]}  Ne4 {[%clk 0:00:12]} 52. Rc2 {[%clk 0:00:35]}  Qa7 {[%clk 0:00:11]} 53. Kh2 {[%clk 0:00:35]}  Qa1 {[%clk 0:00:11]} 54. Rg2 {[%clk 0:00:35]}  Qe1 {[%clk 0:00:11]} 55. Bxe4 {[%clk 0:00:33]}  dxe4 {[%clk 0:00:11]} 56. Qf2 {[%clk 0:00:33]}  Qc3 {[%clk 0:00:09]} 57. Qg3 {[%clk 0:00:32]}  g5 {[%clk 0:00:09]} 58. gxf5 {[%clk 0:00:32]}  exf5 {[%clk 0:00:08]} 59. h4 {[%clk 0:00:28]}  Qc8 {[%clk 0:00:02]} 60. hxg5 {[%clk 0:00:27]}  Qe8 {[%clk 0:00:02]} 61. g6+ {[%clk 0:00:26]}  Kg7 {[%clk 0:00:03]} 62. Qh4 {[%clk 0:00:26]}  Qe6 {[%clk 0:00:03]} 63. Qd8 {[%clk 0:00:25]}  Be7 {[%clk 0:00:03]} 64. Qc7 {[%clk 0:00:24]}  Qf6 {[%clk 0:00:03]} 65. Qd7 {[%clk 0:00:24]}  Qh4+ {[%clk 0:00:03]} 66. Kg1 {[%clk 0:00:25]}  Qe1+ {[%clk 0:00:04]} 67. Kh2 {[%clk 0:00:25]}  Qh4+ {[%clk 0:00:05]} 68. Kg1 {[%clk 0:00:26]}  Qe1+ {[%clk 0:00:05]} 69. Kh2 {[%clk 0:00:27]}  Qh4+ {[%clk 0:00:06]} 1/2-1/2


[Site "https://www.chess.com"]

[Event "Titled Tuesday Blitz June 14 Late 2022"]
[White "Terry, Renato"]
[Black "Krstulovic, Alex"]
[WhiteFideId "3803457"]
[BlackFideId "760056"]
[WhiteElo "2577"]
[BlackElo "2193"]
[Result "1-0"]
[Round "01"]
[TimeControl "180+1"]
[Date "2022.06.14"]
[WhiteClock "0:02:47"]
[BlackClock "0:02:45"]

1. e4 {[%clk 0:03:00]}  c5 {[%clk 0:02:59]} 2. Nf3 {[%clk 0:03:00]}  e6 {[%clk 0:02:59]} 3. Nc3 {[%clk 0:03:00]}  Nc6 {[%clk 0:02:59]} 4. Bb5 {[%clk 0:03:00]}  Nge7 {[%clk 0:02:59]} 5. O-O {[%clk 0:02:59]}  a6 {[%clk 0:02:58]} 6. Bxc6 {[%clk 0:03:00]}  Nxc6 {[%clk 0:02:58]} 7. d4 {[%clk 0:03:01]}  cxd4 {[%clk 0:02:58]} 8. Nxd4 {[%clk 0:03:02]}  Bc5 {[%clk 0:02:58]} 9. Nxc6 {[%clk 0:02:58]}  bxc6 {[%clk 0:02:59]} 10. e5 {[%clk 0:02:56]}  Qh4 {[%clk 0:02:52]} 11. Qf3 {[%clk 0:02:47]}  O-O {[%clk 0:02:48]} 12. Ne4 {[%clk 0:02:47]}  Bd4 {[%clk 0:02:45]} 13. Bg5 {[%clk 0:02:47]} 1-0


[Site "https://www.chess.com"]

[Event "Titled Tuesday Blitz June 14 Late 2022"]
[White "Toncheva, Nadya"]
[Black "Xiong, Jeffery"]
[WhiteFideId "2924056"]
[BlackFideId "2047640"]
[WhiteElo "1888"]
[BlackElo "2714"]
[Result "0-1"]
[Round "01"]
[TimeControl "180+1"]
[Date "2022.06.14"]
[WhiteClock "0:00:04"]
[BlackClock "0:01:08"]

1. e4 {[%clk 0:03:00]}  c5 {[%clk 0:02:56]} 2. Nf3 {[%clk 0:02:59]}  d6 {[%clk 0:02:57]} 3. d4 {[%clk 0:02:59]}  cxd4 {[%clk 0:02:58]} 4. Nxd4 {[%clk 0:03:00]}  Nf6 {[%clk 0:02:58]} 5. f3 {[%clk 0:03:00]}  Nc6 {[%clk 0:02:58]} 6. c4 {[%clk 0:02:58]}  e6 {[%clk 0:02:58]} 7. Be3 {[%clk 0:02:57]}  Be7 {[%clk 0:02:58]} 8. Nc3 {[%clk 0:02:57]}  O-O {[%clk 0:02:58]} 9. Be2 {[%clk 0:02:58]}  d5 {[%clk 0:02:59]} 10. exd5 {[%clk 0:02:53]}  exd5 {[%clk 0:03:00]} 11. Nxc6 {[%clk 0:02:52]}  bxc6 {[%clk 0:03:00]} 12. O-O {[%clk 0:02:52]}  Re8 {[%clk 0:02:58]} 13. cxd5 {[%clk 0:02:41]}  Bd6 {[%clk 0:02:58]} 14. Bf2 {[%clk 0:02:31]}  Nxd5 {[%clk 0:02:50]} 15. Ne4 {[%clk 0:02:13]}  Be5 {[%clk 0:02:49]} 16. Qc2 {[%clk 0:02:01]}  Bf5 {[%clk 0:02:46]} 17. Qxc6 {[%clk 0:01:57]}  Rc8 {[%clk 0:02:46]} 18. Qa4 {[%clk 0:01:55]}  Bxe4 {[%clk 0:02:38]} 19. fxe4 {[%clk 0:01:54]}  Nf4 {[%clk 0:02:38]} 20. Bf3 {[%clk 0:01:36]}  Qg5 {[%clk 0:02:07]} 21. Bg3 {[%clk 0:01:11]}  Bxb2 {[%clk 0:02:02]} 22. Rae1 {[%clk 0:00:59]}  Nd3 {[%clk 0:02:02]} 23. Re2 {[%clk 0:00:53]}  Be5 {[%clk 0:02:01]} 24. Bxe5 {[%clk 0:00:47]}  Nxe5 {[%clk 0:01:58]} 25. Qxa7 {[%clk 0:00:40]}  Rc3 {[%clk 0:01:58]} 26. Ref2 {[%clk 0:00:35]}  h5 {[%clk 0:01:53]} 27. Qd4 {[%clk 0:00:29]}  Rd3 {[%clk 0:01:50]} 28. Qa4 {[%clk 0:00:21]}  Red8 {[%clk 0:01:50]} 29. Be2 {[%clk 0:00:18]}  Rd2 {[%clk 0:01:49]} 30. Qa6 {[%clk 0:00:13]}  Qe3 {[%clk 0:01:47]} 31. Kh1 {[%clk 0:00:11]}  Nd3 {[%clk 0:01:45]} 32. Rxf7 {[%clk 0:00:07]}  Qg5 {[%clk 0:01:31]} 33. Bf3 {[%clk 0:00:04]}  Nf2+ {[%clk 0:01:30]} 34. Kg1 {[%clk 0:00:03]}  Qc5 {[%clk 0:01:14]} 35. h3 {[%clk 0:00:02]}  Kxf7 {[%clk 0:01:11]} 36. Bxh5+ {[%clk 0:00:03]}  Qxh5 {[%clk 0:01:08]} 37. Qa7+ {[%clk 0:00:02]}  Kg8 {[%clk 0:01:08]} 38. Rxf2 {[%clk 0:00:03]}  Rxf2 {[%clk 0:01:07]} 39. Qxf2 {[%clk 0:00:03]}  Rd1+ {[%clk 0:01:07]} 40. Kh2 {[%clk 0:00:04]}  Qe5+ {[%clk 0:01:07]} 41. g3 {[%clk 0:00:04]}  Qxe4 {[%clk 0:01:08]} 0-1


[Site "https://www.chess.com"]